Cogmind - Beta 12 X1 @@@ ROGUE MODE // 2022.08.26 @ 05:29:34 Player: cptwinky Result: Escaped! Performance ------------- Evolutions (9) 4500 Regions Visited (31) 6200 Robots Destroyed (490) 2450 Value Destroyed (24767) 24767 Prototype IDs (65) 1300 Alien Tech Used (5) 1000 Bonus (22133) 22133 TOTAL SCORE: 62350 Bonus ------- High Alert Combat Kills 3089 Follower Combat Kills 2292 Network Hubs Disabled 200 Met Data Miner 300 Met Zhirov 300 Met Warlord at Base 500 MAIN.C Attacked Warlord 500 Warlord Defense Kills 4314 A7 Reached Mainframe 300 Met R17 at Cetus 500 Read Decrypted Archives 300 Met Warlord at Research 2000 Recovered Sigix Corpse 6000 Win 3000 Friendly Fire -1462 Cogmind --------- Core Integrity 785/1600 Matter 300/300 Energy 69/100 System Corruption 11% Temperature Cool (4) Movement Treading (170) Location To Epsilon Eridani Parts ------- > --- POWER (3) -------- (None) > --- PROPULSION (6) --- Armored Heavy Treads Centrium Wheel High-density Centrium Wheel > --- UTILITY (12) ----- Experimental Targeting Computer Improved Armor Integrity Analyzer Improved Hacking Suite Advanced Hacking Suite > --- WEAPON (4) ------- Powered Hammer > --- INVENTORY (5) ---- High-density Centrium Wheel Heavy Missile Launcher Sigix Corpse Sigix Corpse Sigix Corpse Peak State ------------ > --- POWER ------------ Micro Antimatter Reactor Light Quantum Reactor Light Quantum Reactor > --- PROPULSION ------- Armored Heavy Treads High-density Centrium Wheel High-density Centrium Wheel High-density Centrium Wheel High-density Centrium Wheel > --- UTILITY ---------- Advanced Heat Sink Advanced Coolant Injector High-capacity Storage Unit Advanced Targeting Computer Experimental Targeting Computer Core Analyzer Advanced Transmission Jammer Centrium Medium Armor Plating Advanced Hacking Suite System Mapper Experimental System Shield Improved Corruption Screen > --- WEAPON ----------- Dispersion Rifle Enhanced Quantum Rifle Enhanced Quantum Rifle Railgun > --- INVENTORY -------- Improved Ion Engine Micro Antimatter Reactor Advanced Heavy Treads Biometal Heavy Treads High-density Centrium Wheel Experimental Sensor Array Transdimensional Reconstructor Enhanced Nova Cannon KE Penetrator Compact Tesla Bomb Launcher Heavy Missile Launcher Sigix Terminator Powered Hammer Sigix Corpse Sigix Corpse Sigix Corpse [Rating: 198] Favorites ----------- Power F-cell Engine Engine F-cell Engine Power Core Light Fission Core Reactor Quantum Reactor Propulsion Light Treads Treads Light Treads Leg Flexi-carbon Leg Wheel High-density Centrium Wheel Hover Unit Cooled Gravmag System Utility Experimental Targeting Computer Device Improved Cooling System Storage High-capacity Storage Unit Processor Experimental Targeting Computer Hackware Experimental System Shield Protection Improved Light Armor Plating Artifact Phase Redirector Weapon Dispersion Rifle Energy Gun Dispersion Rifle Energy Cannon Compact HERF Cannon Ballistic Gun Advanced KE Penetrator Launcher Scatter Rocket Array Special Weapon Plasma Flamer Impact Weapon Powered Hammer Special Melee Weapon Datajack Build | -11 -10 -10 -10 -9 -8 -8 -7 -7 -7 -7 -6 -6 -6 -6 -6 -6 -5 -5 -5 -5 -4 -4 -4 -4 -4 -3 -3 -3 -2 -2 -1 ------- Run | Scr Mat Min Exi Min Mat Sto Fac Low Low Dat Pro Fac Ext Cet Arc Hub Fac Upp Upp War Pro Fac Upp Upp Zhi Pro Res Qua Res Tes Acc Slots Evolved 18 | . . . . . 4 . 2 . . . . 2 . . . . 2 . . . . 2 . . . . 2 . 2 . 2 Power 2 | . . . . . . . . . . . . . . . . . 1 . . . . . . . . . . . . . 1 Propulsion 4 | . . . . . 1 . 1 . . . . . . . . . 1 . . . . 1 . . . . . . . . . Utility 10 | . . . . . 2 . 1 . . . . 2 . . . . . . . . . 1 . . . . 1 . 2 . 1 Weapon 2 | . . . . . 1 . . . . . . . . . . . . . . . . . . . . . 1 . . . . Parts Attached 545 | 2 7 8 . 8 16 46 19 17 22 3 18 24 25 6 5 12 19 13 9 32 13 32 6 5 11 4 29 34 7 9 84 Power 50 | . 1 1 . 1 1 4 2 . . . . 5 2 . . . 2 1 . 3 1 2 . . . . 3 2 1 4 14 Engine 18 | . 1 1 . 1 1 4 2 . . . . 3 1 . . . 1 1 . . . . . . . . . . . . 2 Core 9 | . . . . . . . . . . . . 2 1 . . . 1 . . 2 1 . . . . . 1 . . 1 . Reactor 23 | . . . . . . . . . . . . . . . . . . . . 1 . 2 . . . . 2 2 1 3 12 Propulsion 105 | 2 3 . . 3 3 14 5 3 3 . 1 7 7 3 . 2 2 . . 7 4 6 1 1 2 2 8 3 . 3 10 Treads 75 | 2 3 . . 3 3 14 5 2 3 . . 5 7 3 . 2 2 . . 4 4 2 1 1 . 1 3 1 . 1 3 Leg 13 | . . . . . . . . . . . 1 1 . . . . . . . 3 . 4 . . 1 1 2 . . . . Wheel 16 | . . . . . . . . 1 . . . 1 . . . . . . . . . . . . . . 3 2 . 2 7 Hover 1 | . . . . . . . . . . . . . . . . . . . . . . . . . 1 . . . . . . Flight . | . . . . . . . . . . . . . . . . . . . . . . . . . . . . . . . . Utility 201 | . 2 1 . 1 3 5 7 7 12 . 8 8 11 1 4 5 7 7 8 11 3 12 2 1 3 . 12 23 3 1 33 Device 118 | . . . . 1 1 3 4 7 10 . 4 3 9 . 3 2 5 3 6 3 3 6 . 1 2 . 7 15 1 . 19 Storage 6 | . 1 . . . 1 1 1 . . . . . . . . . 1 . . . . . . . . . . 1 . . . Processor 20 | . . . . . 1 1 . . . . . 1 . . . . . 1 . 1 . 1 . . . . 2 3 1 1 7 Hackware 9 | . . . . . . . . . . . . 2 . . . . . . . . . 1 . . . . 3 . 1 . 2 Protection 47 | . 1 1 . . . . 2 . 2 . 4 2 2 1 1 3 1 3 2 7 . 4 2 . 1 . . 3 . . 5 Artifact 1 | . . . . . . . . . . . . . . . . . . . . . . . . . . . . 1 . . . Weapon 189 | . 1 6 . 3 9 23 5 7 7 3 9 4 5 2 1 5 8 5 1 11 5 12 3 3 6 2 6 6 3 1 27 Energy Gun 104 | . 1 1 . 3 6 12 3 5 3 1 5 2 1 1 . 4 5 1 . 5 2 7 . 3 6 1 5 6 3 1 11 Energy Cannon 8 | . . . . . . . . . . . . . . . . . . . . . 2 1 2 . . . . . . . 3 Ballistic Gun 25 | . . 3 . . 1 2 . . . . . . 3 1 1 . 1 1 1 2 . . . . . . . . . . 9 Ballistic Cannon . | . . . . . . . . . . . . . . . . . . . . . . . . . . . . . . . . Launcher 29 | . . 2 . . 1 2 1 1 4 1 . 2 . . . 1 . 3 . 3 1 1 1 . . 1 1 . . . 3 Special Weapon 9 | . . . . . 1 4 . 1 . . 1 . . . . . 2 . . . . . . . . . . . . . . Impact Weapon 9 | . . . . . . 3 . . . . 1 . . . . . . . . 1 . 3 . . . . . . . . 1 Slashing Weapon . | . . . . . . . . . . . . . . . . . . . . . . . . . . . . . . . . Piercing Weapon . | . . . . . . . . . . . . . . . . . . . . . . . . . . . . . . . . Special Melee Weapon 5 | . . . . . . . 1 . . 1 2 . 1 . . . . . . . . . . . . . . . . . . Unidentified Prototypes 36 | . . . . . 2 8 1 . . . 1 1 . 4 . . . . . 6 . . . . 3 . 3 3 . 2 2 Corrupted Parts 5 | . . . . . . . . . . . . . . 1 . . . . . . 3 . . . . 1 . . . . . System Corruption 26 | . . . . . . . . . . . . . . 10 . . . . . . 12 . . . . 4 . . . . . Parts Lost 128 | . 2 2 . 2 1 . . . . . 1 11 3 . 2 6 1 . . 13 5 11 2 . . 2 9 11 . 1 43 Power 19 | . 1 1 . 1 1 . . . . . . 2 . . . . . . . 2 . 3 . . . . 1 . . 1 6 Propulsion 23 | . 1 . . . . . . . . . 1 4 . . . 1 . . . 2 2 4 . . . . 3 . . . 5 Utility 56 | . . 1 . 1 . . . . . . . 2 2 . 1 2 1 . . 6 . 4 2 . . 2 3 8 . . 21 Weapon 30 | . . . . . . . . . . . . 3 1 . 1 3 . . . 3 3 . . . . . 2 3 . . 11 Highest Loss Streak 12 | . 2 2 . 2 1 . . . . . 1 7 1 . 2 3 1 . . 9 2 5 2 . . 2 3 4 . 1 12 To Critical Strikes 3 | . . . . . . . . . . . . 1 . . . . . . . . . . . . . . . . . . 2 Average Slot Usage (%) 90 | . 93 99 100 99 98 99 99 99 92 92 91 92 99 92 84 83 84 87 82 81 74 77 73 76 67 82 81 85 94 95 90 Engine 5 | . 14 14 14 13 9 8 6 7 7 7 7 4 2 6 6 6 10 5 11 8 . . . . . . . . . . 1 Reactor 2 | . . . . . . . . . . . . . . . . . . . . . 5 5 5 5 5 5 4 9 8 7 9 Treads 17 | . 28 28 28 28 27 27 30 29 15 15 7 13 20 19 13 13 13 17 17 15 6 14 9 14 15 15 10 8 4 4 4 Leg 1 | . . . . . . . . . . . 6 1 3 . . . . . . 1 15 6 10 5 4 5 1 . . . . Wheel 3 | . . . . . . . . . 7 7 7 4 1 . . . . . . . . . . . . . 4 9 17 17 15 Device 13 | . . . . 7 17 17 15 15 14 15 13 14 20 20 18 13 15 16 10 5 6 15 15 13 15 15 13 17 13 13 11 Storage 6 | . 14 14 14 14 9 9 7 7 7 7 7 6 6 6 6 6 5 5 5 5 5 5 5 5 5 5 4 3 4 4 4 Processor 8 | . . . . . 9 9 7 7 7 7 7 13 13 13 8 6 5 10 11 12 10 6 5 5 5 5 7 5 16 17 16 Hackware 1 | . . . . . . . . . . . . 5 3 . . . . . . . . . . . . . 7 4 8 8 8 Protection 6 | . 7 13 14 6 . . 6 7 7 7 8 4 2 6 10 17 12 5 5 9 4 5 5 10 11 14 2 3 4 4 5 Energy Gun 15 | . 4 14 14 21 22 21 22 21 22 15 22 19 14 13 13 17 14 10 11 10 4 11 10 14 2 14 18 18 17 17 7 Ballistic Gun 3 | . 23 13 14 6 1 2 . . . . . . 5 6 5 1 1 4 4 4 2 . . . . . . . . . 6 Naked Turns . | . . . . . . . . . . . . . . . . . . . . . . . . . . . . . . . . Heaviest Build 167 | 12 29 32 31 35 42 45 68 69 70 68 70 64 79 81 89 88 102 100 104 121 113 107 110 110 107 107 104 130 111 122 167 Greatest Support 230 | 40 40 40 40 40 60 62 82 82 28 28 28 84 114 160 160 160 190 160 160 190 102 182 160 188 188 188 230 140 80 80 135 Greatest Overweight (x) 6 | . . . . . . . . 2 2 2 2 5 6 . . . . . . 1 1 1 1 . . . 2 3 1 1 2 Average Overweight (x) . | . . . . . . . . . 2 2 2 1 1 . . . . . . . . . . . . . 1 2 1 1 1 Largest Inventory Capacity 20 | 8 15 15 15 15 15 15 20 20 20 20 20 20 20 20 20 20 20 20 20 20 20 20 20 20 20 20 20 20 20 20 20 Average Capacity 18 | 8 14 15 15 15 15 15 18 20 20 20 20 20 20 20 20 20 20 20 20 20 20 20 20 20 20 20 20 19 20 20 19 Most Carried 20 | 6 15 15 15 15 15 15 20 20 20 20 20 20 20 20 20 20 20 20 20 20 20 20 19 20 20 20 20 20 20 20 20 Average Carried 18 | 6 11 14 14 14 14 14 17 19 19 20 19 18 19 19 18 17 19 19 19 19 18 17 18 19 19 20 19 18 19 19 18 Final Capacity 20 | 8 15 15 15 15 15 15 20 20 20 20 20 20 20 20 20 20 20 20 20 20 20 20 20 20 20 20 20 20 20 20 5 Final Carried 20 | 6 15 15 15 15 15 15 20 20 20 20 20 19 19 20 18 18 20 20 20 20 16 18 19 20 20 20 20 20 20 20 5 Class Distribution -------------------- 19% | Gunner 14% | Scavenger-Gunner 12% | Scavenger-Mutant 11% | Scavenger-Tank 10% | Mutant 9% | Scavenger-Skirmisher 8% | Hacker-Gunner 3% | Generator-Gunner 3% | Machinist-Gunner Dominant Class ---------------- Mutant | -10/Materials Mutant | -10/Mines Mutant | -10/Exiles Scavenger-Mutant | -9/Mines Scavenger-Gunner | -8/Materials Scavenger-Gunner | -8/Storage Gunner | -7/Factory Gunner | -7/Lower Caves Gunner | -7/Lower Caves Mutant | -7/Data Miner Gunner | -6/Proximity Caves Gunner | -6/Factory Machinist-Gunner | -6/Extension Scavenger-Tank | -6/Cetus Scavenger-Tank | -6/Archives Scavenger-Tank | -6/Hub_04(d) Scavenger-Tank | -5/Factory Scavenger-Skirmisher | -5/Upper Caves Scavenger-Skirmisher | -5/Upper Caves Scavenger-Gunner | -5/Warlord Scavenger-Mutant | -4/Proximity Caves Scavenger-Mutant | -4/Factory Scavenger-Mutant | -4/Upper Caves Scavenger-Gunner | -4/Upper Caves Scavenger-Mutant | -4/Zhirov Scavenger-Tank | -3/Proximity Caves Hacker-Gunner | -3/Research Scavenger-Gunner | -3/Quarantine Hacker-Gunner | -2/Research Hacker-Gunner | -2/Testing Hacker-Gunner | -1/Access Resources | -11 -10 -10 -10 -9 -8 -8 -7 -7 -7 -7 -6 -6 -6 -6 -6 -6 -5 -5 -5 -5 -4 -4 -4 -4 -4 -3 -3 -3 -2 -2 -1 ----------- Run | Scr Mat Min Exi Min Mat Sto Fac Low Low Dat Pro Fac Ext Cet Arc Hub Fac Upp Upp War Pro Fac Upp Upp Zhi Pro Res Qua Res Tes Acc Matter Collected 9393 | 220 108 161 . 83 177 562 250 270 340 . 265 275 423 118 40 260 216 245 158 585 454 475 190 101 70 208 299 515 57 130 2138 Remotely . | . . . . . . . . . . . . . . . . . . . . . . . . . . . . . . . . Salvage Created 25624 | . 306 271 . 109 770 1662 675 563 725 . 479 1427 1609 136 195 1147 782 460 467 956 236 1729 353 154 161 448 1444 1666 190 568 5936 Parts 976 | . 23 15 . 5 30 56 33 20 40 . 9 47 87 14 13 36 24 15 11 27 7 62 9 3 2 23 39 71 5 18 232 Haulers Intercepted 21 | . . . . . 1 6 2 . . . . 2 1 . . . 1 . . . . . . . . . 3 . 2 . 3 Recyclers Shooed 11 | . 2 1 . . . 1 . . . . . 1 . . . . 1 . . . . 1 . . . . 1 . . . 3 Parts Field Recycled . | . . . . . . . . . . . . . . . . . . . . . . . . . . . . . . . . Retrieved Matter . | . . . . . . . . . . . . . . . . . . . . . . . . . . . . . . . . Parts Self-Destructed 98 | . . . . . . . . 11 34 . 15 . . . . . . 14 7 . 2 . . 1 1 13 . . . . . Prevented 26 | . . . . . . . . . . . . . . . . . . 3 4 . 2 . 9 . . 8 . . . . . Kills | -11 -10 -10 -10 -9 -8 -8 -7 -7 -7 -7 -6 -6 -6 -6 -6 -6 -5 -5 -5 -5 -4 -4 -4 -4 -4 -3 -3 -3 -2 -2 -1 ------- Run | Scr Mat Min Exi Min Mat Sto Fac Low Low Dat Pro Fac Ext Cet Arc Hub Fac Upp Upp War Pro Fac Upp Upp Zhi Pro Res Qua Res Tes Acc Combat Hostiles Destroyed 411 | . 9 10 . 2 14 24 9 13 18 . 8 19 24 4 . 24 8 11 8 32 5 27 6 . . 9 22 24 . 7 74 Guns 288 | . 9 7 . 2 13 21 4 8 10 . 6 13 23 4 . 13 6 5 8 13 . 18 . . . 4 21 23 . 6 51 Cannons 6 | . . . . . . . . . . . . . . . . . . . . . 2 1 . . . . . . . . 3 AOE 87 | . . 3 . . . 2 5 4 7 . 1 3 . . . 6 . 6 . 17 3 6 3 . . 5 1 . . . 15 Classes Destroyed 25 | . 2 . . 1 3 3 5 2 1 . . 1 1 . . . . . . 3 . . . . . . . 1 . . 2 Worker 19 | . . . . . . . 4 . . . . 1 . . . 1 1 . . . . 1 . . . . . 1 . . 10 Builder 8 | . . . . . . . 1 . . . . . 2 . . . . . . . . 1 . . . . . . . . 4 Tunneler 4 | . . . . . . . . . . . . 1 . . . . 1 . . . . . . . . . . . . . 2 Hauler 21 | . . . . . 1 6 2 . . . . 2 1 . . . 1 . . . . . . . . . 3 . 2 . 3 Recycler 10 | . . . . . . 3 1 . . . . . . . . . 1 . . . . 2 . . . . . . . . 3 Minesweeper 2 | . . . . . . . . 1 . . . . . . . . . 1 . . . . . . . . . . . . . Mechanic 5 | . . . . . . 3 . . . . . . . . . . 1 . . . . . . . . . . . . . 1 Operator 5 | . . . . . 1 1 . . . . . . . . . . . . . . . . . . . . . 1 . . 2 Watcher 6 | . . . . . . . 1 . . . . . 1 . . . . . . . . 1 . . . . . . . . 3 Swarmer 65 | . 3 6 . . . . . 3 5 . . . 7 4 . 3 . 5 . 4 . 5 . . . 5 5 . . . 10 Saboteur 1 | . . . . . . . . . . . . . . . . . . . . . . . . . . . . . . . 1 Grunt 167 | . 6 4 . . 9 18 6 4 7 . 7 11 9 . . 10 . 1 7 9 3 7 6 . . . 8 7 . 3 25 Brawler 15 | . . . . . 1 . . . 3 . 1 . . . . . . 4 . 1 1 . . . . . 1 . . . 3 Duelist 7 | . . . . . . 1 . . . . . . . . . 1 . . . . . . . . . . 1 . . . 4 Protector 3 | . . . . . . . 1 . 1 . . . . . . . . . . 1 . . . . . . . . . . . Sentry 33 | . . . . 2 4 5 . 1 . . . 2 5 . . 7 1 1 . . 1 . . . . . 1 . . . 3 Demolisher 1 | . . . . . . . . . . . . . . . . . . . . 1 . . . . . . . . . . . Specialist 6 | . . . . . . . . . . . . . . . . . . . . . . . . . . . . 6 . . . Hunter 48 | . . . . . . . 2 1 . . . 4 . . . 2 4 . 1 5 . 8 . . . 4 2 3 . 3 9 Programmer 49 | . . . . . . . . . 1 . . 2 . . . . 3 . . 5 . 7 . . . . 4 8 . 1 18 Heavy 1 | . . . . . . . . . . . . . . . . . . . . . . . . . . . . . . . 1 Behemoth 5 | . . . . . . . . . . . . . 2 . . 1 . . . 2 . . . . . . . . . . . Striker 1 | . . . . . . . . . . . . . . . . . . . . 1 . . . . . . . . . . . Executioner 3 | . . . . . . . . . . . . . . . . . . . . 3 . . . . . . . . . . . Decomposer 3 | . . . . . . . . . 3 . . . . . . . . . . . . . . . . . . . . . . Thug 4 | . . 1 . . . . . 2 . . . . 1 . . . . . . . . . . . . . . . . . . Savage 1 | . . . . . . . . 1 . . . . . . . . . . . . . . . . . . . . . . . Mutant 4 | . . . . . . . . 2 1 . . . . . . . . . . . . . . 1 . . . . . . . Best Kill Streak 10 | . 4 6 . 2 4 6 8 4 5 . 3 6 5 2 . 8 6 7 4 10 3 9 3 . . 7 5 4 2 3 9 Combat Bots Only 10 | . 4 6 . 2 4 3 5 4 5 . 3 6 5 2 . 7 2 7 4 10 3 8 3 . . 7 5 3 . 3 6 Max Kills in Single Turn 8 | . 1 2 . 1 1 1 8 4 3 . 1 3 2 1 . 6 1 2 1 4 1 4 2 1 . 3 2 2 1 2 8 Gunslinging 1 | . . . . . . . . 1 . . . . 1 . . . . . . . . . . . . . 1 1 . 1 1 Exploded 6 | . . 2 . . . 1 5 4 3 . 1 3 . . . 5 . 2 . 4 1 4 2 . . 3 1 . . . 6 Melee . | . . . . . . . . . . . . . . . . . . . . . . . . . . . . . . . . Uniques/NPCs Destroyed 1 | . . . . . . . . . . . . . . 1 . . . . . . . . . . . . . . . . . Revision 17 (-6/Cetus) Combat | -11 -10 -10 -10 -9 -8 -8 -7 -7 -7 -7 -6 -6 -6 -6 -6 -6 -5 -5 -5 -5 -4 -4 -4 -4 -4 -3 -3 -3 -2 -2 -1 -------- Run | Scr Mat Min Exi Min Mat Sto Fac Low Low Dat Pro Fac Ext Cet Arc Hub Fac Upp Upp War Pro Fac Upp Upp Zhi Pro Res Qua Res Tes Acc Damage Taken 38706 | . 561 260 . 329 363 963 330 381 680 . 368 1864 1221 34 1599 2186 1381 524 482 4737 633 2821 362 . . 719 2459 2444 . 459 10546 Core 2717 | . 77 15 . 29 48 218 14 5 61 . 109 139 48 . 165 74 33 . 15 277 95 290 93 . . 33 114 23 . 27 715 Absorbed by Shields 3580 | . . . . . . . . . . . . . 23 32 . . . . . 24 . . . . . . . 1364 . 152 1985 Reduced by Siege Mode 616 | . . . . . . . . . . . . . . . . 68 58 69 24 . . 41 . . . . 142 132 . 21 61 Redirected to Shielding 558 | . . . . . . . . . . . . . . . . 20 . . . . . 290 48 . . 93 43 . . . 64 Regen/Repaired (Parts) 3036 | . . . . . . 45 . . . . . . . . . . 780 . . 659 . . . . . . 792 578 . . 182 Core Remaining (%) 68 | 100 . . . 51 . 51 . . . . 73 . . . . 49 . . . . 58 . . . . 63 . 89 . 98 49 Volleys Fired 1177 | . 29 19 . 9 43 89 21 28 33 . 23 57 62 11 7 49 39 20 18 59 12 142 14 10 24 18 62 80 3 13 183 Largest 4 | . 2 2 . 2 3 3 3 3 3 . 3 3 3 3 3 3 3 3 3 3 2 1 1 3 1 3 4 4 4 4 4 Hottest 376 | . 40 70 . 70 203 203 171 196 193 . 197 211 211 240 195 224 243 197 197 208 260 94 94 264 94 264 364 376 370 352 352 Shots Fired 2931 | . 58 32 . 18 109 199 61 64 88 . 59 165 170 23 21 143 99 46 52 151 17 143 14 13 24 43 202 271 12 47 587 Gun 2753 | . 58 26 . 18 102 173 60 56 84 . 57 162 170 23 21 141 95 42 52 142 9 134 . 13 24 37 197 271 12 47 527 Cannon 76 | . . . . . . . . . . . . . . . . . . . . . 4 8 9 . . . . . . . 55 Launcher 62 | . . 6 . . . 4 1 2 4 . 1 3 . . . 2 . 4 . 9 4 1 5 . . 6 5 . . . 5 Special 40 | . . . . . 7 22 . 6 . . 1 . . . . . 4 . . . . . . . . . . . . . . Kinetic 529 | . 58 13 . 9 8 18 . . . . . . 49 10 7 11 14 16 18 52 . . . . . . . . . . 246 Thermal 2322 | . . 13 . 9 101 177 60 62 84 . 58 162 121 13 14 130 85 26 34 90 11 134 . 13 24 37 197 271 12 47 337 Explosive 53 | . . 6 . . . 4 1 2 4 . 1 3 . . . 2 . 4 . 9 2 1 5 . . . 5 . . . 4 Electromagnetic 27 | . . . . . . . . . . . . . . . . . . . . . 4 8 9 . . 6 . . . . . Robot Hit Streak 70 | . 12 7 . 10 19 35 13 13 42 . 15 22 17 5 15 24 51 62 70 29 9 14 15 9 28 32 34 41 11 9 34 Robot Miss Streak 5 | . 2 1 . 1 2 4 4 3 3 . 2 3 3 5 2 4 2 . 1 3 3 3 1 1 . 2 3 2 1 2 4 Penetration Max 2 | . . . . . . . . . . . . . . 1 . . 1 1 . 1 . . . . . . . . . . 2 Secondary Targets 57 | . 1 4 . 1 . 4 . 2 3 . 2 5 2 . . 1 1 2 2 2 . . . . . 1 10 3 . 1 10 Max Gunslinging Chain 2 | . 1 1 . 1 . 1 . 2 1 . 1 1 1 . . 1 1 1 1 1 . . . . . 1 2 1 . 1 1 Capacitor 160 | . . . . . . . . . . . . . . . . . . . . . . 142 9 9 . . . . . . . Shots Hit Robots 2241 | . 44 21 . 16 83 150 44 46 69 1 49 121 124 13 20 129 84 42 43 119 13 116 11 9 24 27 160 193 9 35 426 Core Hits 1099 | . 20 19 . 5 36 70 27 37 41 . 19 53 55 9 17 89 24 25 15 85 15 52 12 4 3 17 68 58 2 15 207 Critical Kills 48 | . . . . . . . . . . . . . . . 1 . . 2 2 1 . 8 . . . 2 3 . . 3 26 Critical Parts Destroyed 82 | . 1 . . . . . . . . . . . . . . . 1 1 2 7 . 14 . 1 . 5 7 . . 6 37 Critical Strikes 220 | . 1 2 . . 5 10 2 6 4 . 4 14 10 . 1 2 4 4 7 23 . 22 1 1 . 7 11 . . 9 70 Burn 83 | . . 2 . . 5 10 2 6 4 . 4 14 10 . . 2 3 . 3 15 . . . . . . . . . . 3 Meltdown 2 | . . . . . . . . . . . . . . . . . . . . . . . . . . . . . . . 2 Destroy 133 | . 1 . . . . . . . . . . . . . 1 . 1 4 4 8 . 22 . 1 . 7 11 . . 9 64 Corrupt 1 | . . . . . . . . . . . . . . . . . . . . . . . 1 . . . . . . . . Smash 1 | . . . . . . . . . . . . . . . . . . . . . . . . . . . . . . . 1 Melee Attacks 48 | . . . . . . 6 . . . 1 16 . 1 . . . . . . 6 . 7 . . . . . . . . 11 Impact 41 | . . . . . . 6 . . . . 11 . . . . . . . . 6 . 7 . . . . . . . . 11 Slashing . | . . . . . . . . . . . . . . . . . . . . . . . . . . . . . . . . Piercing . | . . . . . . . . . . . . . . . . . . . . . . . . . . . . . . . . Sneak Attacks 8 | . . . . . . 1 . . . 1 5 . 1 . . . . . . . . . . . . . . . . . . Combat Hostiles 1 | . . . . . . . . . . . 1 . . . . . . . . . . . . . . . . . . . . Follow-up Attacks . | . . . . . . . . . . . . . . . . . . . . . . . . . . . . . . . . Damage Inflicted 76296 | . 370 585 . 180 1432 3344 1439 1152 1941 . 906 3109 3019 339 474 3579 2250 1891 1111 6611 806 4152 1054 243 852 1076 5456 6307 255 1095 21268 Guns 52838 | . 352 211 . 167 1334 2359 947 748 1151 . 763 2358 3012 339 474 2748 2111 1181 1111 2537 99 3201 . 243 852 729 4527 6307 255 1095 11627 Cannons 1825 | . . . . . . . . . . . . . . . . . . . . . 141 267 357 . . . . . . . 1060 Explosions 20657 | . . 356 . . . 663 480 341 790 . 129 751 . . . 820 . 710 . 4074 566 669 697 . . 347 929 . . . 8335 Melee 283 | . . . . . . 72 . . . . . . . . . . . . . . . . . . . . . . . . 211 Ramming 238 | . 18 18 . 13 18 7 12 . . . . . 7 . . 11 84 . . . . 15 . . . . . . . . 35 Kinetic 9095 | . 352 52 . 68 146 260 . . . . . . 793 170 161 209 299 559 395 1244 . . . . . . . . . . 4387 Thermal 53188 | . . 159 . 99 1268 2342 947 811 1151 . 777 2358 2219 169 313 2539 1867 622 716 1293 215 3561 . 243 852 787 4527 6307 255 1095 15696 Explosive 12438 | . . 356 . . . 663 480 341 790 . 129 751 . . . 820 . 710 . 4074 450 309 697 . . . 929 . . . 939 Electromagnetic 1054 | . . . . . . . . . . . . . . . . . . . . . 141 267 357 . . 289 . . . . . Impact 283 | . . . . . . 72 . . . . . . . . . . . . . . . . . . . . . . . . 211 Slashing . | . . . . . . . . . . . . . . . . . . . . . . . . . . . . . . . . Piercing . | . . . . . . . . . . . . . . . . . . . . . . . . . . . . . . . . Highest Corruption 22 | . . . . . . . . . . . . . . 10 10 . 1 . . 10 22 9 9 9 9 14 9 14 . 1 15 Average Corruption 9 | . . . . . . . . . . . . . . 10 6 . 1 . . 6 12 5 9 9 9 9 7 11 . 1 12 Corruption Purged 37 | . . . . . . . . . . . . . . . 10 . 1 . . . . . . . . . . 5 . . 21 Corruption Blocked 11 | . . . . . . . . . . . . . . . . . . . . . . . . . . . . . 4 . 7 Effects 346 | . . . . . . . . . . . . . . 5 9 . . . . 6 18 26 29 33 8 12 17 86 . 3 94 Message Errors 91 | . . . . . . . . . . . . . . 2 3 . . . . . 5 5 9 8 1 4 4 23 . 1 26 Matter Fused 90 | . . . . . . . . . . . . . . . 1 . . . . 1 4 10 7 10 3 6 3 23 . . 22 Heat Flow Errors 29 | . . . . . . . . . . . . . . 1 1 . . . . . 2 3 3 2 . . 3 6 . . 8 Energy Discharges 35 | . . . . . . . . . . . . . . 1 1 . . . . 1 2 1 1 5 1 1 4 7 . . 10 Parts Rejected 5 | . . . . . . . . . . . . . . . 1 . . . . 1 1 1 . . . . . 1 . . . Data Loss (minor) 34 | . . . . . . . . . . . . . . . . . . . . 1 3 . 5 4 1 . 1 9 . 1 9 Data Loss (major) 20 | . . . . . . . . . . . . . . . 2 . . . . . . 2 2 3 2 . 1 3 . . 5 Misfires 16 | . . . . . . . . . . . . . . . . . . . . 2 1 2 . 1 . 1 . 6 . 1 2 Alerts 10 | . . . . . . . . . . . . . . 1 . . . . . . . 1 2 . . . 1 2 . . 3 Weapon Failures 16 | . . . . . . . . . . . . . . . . . . . . . . 1 . . . . . 6 . . 9 Overload Shots 2 | . . . . . . . . . 1 . . . . 1 . . . . . . . . . . . . . . . . . Effects 1 | . . . . . . . . . 1 . . . . . . . . . . . . . . . . . . . . . . Energy Bleed 1 | . . . . . . . . . 1 . . . . . . . . . . . . . . . . . . . . . . Overflow Damage 1417 | . 29 . . . . 38 4 . 20 . . 3 . . . . 3 26 . 68 . 56 15 . . . 18 . . . 1137 Projectiles 64 | . . . . . . . . . . . . . . . . . 3 . . . . 1 . . . . . . . . 60 Explosions 1238 | . 29 . . . . 6 4 . 20 . . 3 . . . . . 26 . 68 . 55 15 . . . 18 . . . 994 Melee 115 | . . . . . . 32 . . . . . . . . . . . . . . . . . . . . . . . . 83 Knockbacks 3 | . . 1 . . . . . . . . . . . . . 2 . . . . . . . . . . . . . . . Impact 3 | . . 1 . . . . . . . . . . . . . 2 . . . . . . . . . . . . . . . Kinetic . | . . . . . . . . . . . . . . . . . . . . . . . . . . . . . . . . Secondary . | . . . . . . . . . . . . . . . . . . . . . . . . . . . . . . . . Self-Inflicted Damage 672 | . 94 64 . . . . . 14 57 . 53 182 . . . 51 . . . 69 . . 26 . . 13 . . . . 49 Shots 23 | . 1 2 . . . . . 1 3 . 3 6 . . . 2 . . . 1 . . 1 . . 2 . . . . 1 Rammed 46 | . 9 6 . 1 5 3 1 . . . . . 1 . . 3 10 . . . . 2 . . . . . . . . 5 Targets Rammed 49 | . 9 6 . 1 5 3 2 . . . . . 1 . . 3 10 . . . . 3 . . . . . . . . 6 Kicked 1 | . . . . . . . . . . . . . . . . . . . . . . 1 . . . . . . . . . Crushed 2 | . . . . . . . 1 . . . . . . . . . . . . . . . . . . . . . . . 1 Highest Temperature 462 | . 35 129 . 187 411 197 14 5 36 . 192 199 188 139 148 199 278 92 124 200 462 320 246 216 16 152 384 231 196 198 198 Average Temperature 83 | . 15 48 . 109 80 60 7 5 15 . 73 83 70 41 35 83 89 43 49 82 154 95 114 98 11 72 110 81 110 110 85 Received Heat Transfer 5317 | . 138 60 . 90 243 441 108 78 198 . 174 486 255 . 66 660 . 36 207 165 102 355 84 . . . 449 395 . 33 494 Effects 10 | . . . . . . . . . . . . . . . . . 3 . . 3 2 1 . . . . 1 . . . . Shutdowns 1 | . . . . . . . . . . . . . . . . . . . . . 1 . . . . . . . . . . Energy Bleed 1 | . . . . . . . . . . . . . . . . . . . . . . 1 . . . . . . . . . Interference 6 | . . . . . . . . . . . . . . . . . 3 . . 3 . . . . . . . . . . . Short Circuit 2 | . . . . . . . . . . . . . . . . . . . . . 1 . . . . . 1 . . . . Siege Activations 35 | . . . . . . . . . . . . . . . . 1 3 1 2 . . 4 1 . . . 5 10 . 2 6 Total Turns 993 | . . . . . . . . . . . . . . . . 41 205 49 43 . . 27 7 . . . 110 244 . 29 238 Longest Duration 164 | . . . . . . . . . . . . . . . . 41 164 49 24 . . 9 7 . . . 37 45 . 25 144 Robots Corrupted 5 | . . . . . . . . . . . . . . . . . . . . . . 2 3 . . . . . . . . Combat Hostiles 5 | . . . . . . . . . . . . . . . . . . . . . . 2 3 . . . . . . . . Parts Fried 13 | . . . . . . 1 . 1 . . . . . . . . . . 2 2 . 2 4 . . 1 . . . . . Impact Corruptions 4 | . . . . . . 1 . . . . . . . . . . . . . . . . . . . . . . . . 3 Robots Melted 28 | . . . . . 1 3 . 1 1 . 1 3 1 . . 5 2 . . 2 . . . . . . . 1 1 1 5 Combat Hostiles 25 | . . . . . 1 1 . 1 1 . 1 3 1 . . 5 2 . . 2 . . . . . . . 1 . 1 5 Parts Melted 229 | . . 3 . 1 9 12 6 7 2 . 4 35 17 . 4 19 17 . 7 7 . 9 . . . 1 18 13 . 4 34 Heat Transferred 79056 | . . 592 . 296 3477 6539 1850 2479 2548 . 1969 6076 5807 253 509 5177 3132 962 1332 4951 345 4307 . 333 888 1099 5792 7141 333 1295 9574 Parts Sabotaged 3 | . . . . . . . . . . . . . . . . . . . . . . . . . . . . . . . 3 Parts Stolen . | . . . . . . . . . . . . . . . . . . . . . . . . . . . . . . . . Parts Stripped . | . . . . . . . . . . . . . . . . . . . . . . . . . . . . . . . . Power Chain Reactions 1 | . . . . . . . . . . . . . . . . . . . . . . . . . . 1 . . . . . Missiles Intercepted . | . . . . . . . . . . . . . . . . . . . . . . . . . . . . . . . . Alert | -11 -10 -10 -10 -9 -8 -8 -7 -7 -7 -7 -6 -6 -6 -6 -6 -6 -5 -5 -5 -5 -4 -4 -4 -4 -4 -3 -3 -3 -2 -2 -1 ------- Run | Scr Mat Min Exi Min Mat Sto Fac Low Low Dat Pro Fac Ext Cet Arc Hub Fac Upp Upp War Pro Fac Upp Upp Zhi Pro Res Qua Res Tes Acc Peak Influence 2817 | . 406 452 . 35 304 650 742 . . . . 252 370 669 403 708 353 . . . . 387 . . . . 690 564 212 237 2817 Initial 357 | . . 115 . . . 16 243 . . . . . 71 207 267 126 346 . . . . 50 . . . . 128 357 177 119 55 Average 328 | . 227 163 . 10 148 289 611 . . . . 115 147 405 342 442 188 . . . . 176 . . . . 470 347 198 157 726 Maximum Alert Level 5 | . 2 2 . . 1 2 3 . . . . 1 1 2 2 3 1 . . . . 1 . . . . 2 2 1 1 5 Low Security (%) 43 | 100 34 54 . 100 69 43 . . . . . 95 72 3 . 24 47 . . . . 59 . . . . 14 15 61 58 22 Level 1 26 | . 53 38 . . 30 17 2 . . . . 4 27 57 98 7 52 . . . . 40 . . . . 12 47 38 41 15 Level 2 23 | . 12 6 . . . 38 80 . . . . . . 38 1 65 . . . . . . . . . . 73 37 . . 24 Level 3 2 | . . . . . . . 17 . . . . . . . . 3 . . . . . . . . . . . . . . 9 Level 4 3 | . . . . . . . . . . . . . . . . . . . . . . . . . . . . . . . 21 Level 5 1 | . . . . . . . . . . . . . . . . . . . . . . . . . . . . . . . 6 High Security . | . . . . . . . . . . . . . . . . . . . . . . . . . . . . . . . . Max Security . | . . . . . . . . . . . . . . . . . . . . . . . . . . . . . . . . Squads Dispatched 78 | . 4 . . . 2 4 6 . 1 . . 6 1 . . 5 2 . . . . 7 . . . . 5 6 1 2 26 Investigation 20 | . 3 . . . 1 . 4 . . . . 1 . . . 1 . . . . . 3 . . . . 1 2 . 1 3 Extermination 21 | . . . . . . . 1 . . . . 3 . . . . 2 . . . . 4 . . . . 1 3 . . 7 Reinforcement 15 | . 1 . . . 1 2 . . . . . 2 1 . . . . . . . . . . . . . 2 1 1 1 3 Assault 12 | . . . . . . 1 1 . 1 . . . . . . 1 . . . . . . . . . . 1 . . . 7 Garrison 10 | . . . . . . 1 . . . . . . . . . 3 . . . . . . . . . . . . . . 6 Intercept . | . . . . . . . . . . . . . . . . . . . . . . . . . . . . . . . . Searches Triggered . | . . . . . . . . . . . . . . . . . . . . . . . . . . . . . . . . Data Miner Redirects 10 | . . . . . . . . . . . . 1 . . . 1 . . . . . 2 . . . . 1 . . . 5 Construction Impeded 1 | . . . . . . . . . . . . . 1 . . . . . . . . . . . . . . . . . . Haulers Reinforced 3 | . . . . . . . . . . . . 1 . . . . . . . . . . . . . . 1 . 1 . . Active Scanning Responses . | . . . . . . . . . . . . . . . . . . . . . . . . . . . . . . . . Cargo Convoy Interrupts . | . . . . . . . . . . . . . . . . . . . . . . . . . . . . . . . . Stealth | -11 -10 -10 -10 -9 -8 -8 -7 -7 -7 -7 -6 -6 -6 -6 -6 -6 -5 -5 -5 -5 -4 -4 -4 -4 -4 -3 -3 -3 -2 -2 -1 --------- Run | Scr Mat Min Exi Min Mat Sto Fac Low Low Dat Pro Fac Ext Cet Arc Hub Fac Upp Upp War Pro Fac Upp Upp Zhi Pro Res Qua Res Tes Acc Distress Signals 33 | . 4 . . . 1 3 . . . . . 3 1 2 . 2 3 . . 1 . 1 . . . . . 2 3 . 7 Communications Jammed 66 | . . . . . . . . . . . . . . . . . 11 . . . . . . . . . . . . . 55 Distress Signals 65 | . . . . . . . . . . . . . . . . . 11 . . . . . . . . . . . . . 54 Times Spotted 701 | . 20 10 . 2 25 57 22 18 25 . 14 29 33 15 22 29 19 12 9 60 11 34 6 . . 10 30 40 . 11 138 Peak Tracking Total 16 | . 7 3 . 2 6 5 6 6 7 . 5 5 4 5 16 7 5 7 4 13 4 6 3 . . 5 6 5 . 4 12 Tactical Retreats 39 | . 1 . . . 2 1 1 1 . . 1 2 2 . . . . 1 1 2 3 . . . . . 1 4 . 2 14 Traps | -11 -10 -10 -10 -9 -8 -8 -7 -7 -7 -7 -6 -6 -6 -6 -6 -6 -5 -5 -5 -5 -4 -4 -4 -4 -4 -3 -3 -3 -2 -2 -1 ------- Run | Scr Mat Min Exi Min Mat Sto Fac Low Low Dat Pro Fac Ext Cet Arc Hub Fac Upp Upp War Pro Fac Upp Upp Zhi Pro Res Qua Res Tes Acc Traps Triggered 18 | . 2 . . . . 4 2 . . . . 1 2 . . . . . . . . 1 . . . . 1 1 . . 4 Indirectly . | . . . . . . . . . . . . . . . . . . . . . . . . . . . . . . . . Trap Hack Attempts 23 | . . . . . . . 23 . . . . . . . . . . . . . . . . . . . . . . . . Triggered . | . . . . . . . . . . . . . . . . . . . . . . . . . . . . . . . . Disarmed . | . . . . . . . . . . . . . . . . . . . . . . . . . . . . . . . . Reprogrammed 14 | . . . . . . . 2 . . . . 6 . . . . . . . . . . . . . . . . . 6 . Reused 11 | . . . . . . . 1 2 . . 2 2 . . . . . 2 2 . . . . . . . . . . . . Traps Extracted . | . . . . . . . . . . . . . . . . . . . . . . . . . . . . . . . . Installed 10 | . . . . . . . . 3 . . 2 . . . . . . 3 2 . . . . . . . . . . . . Triggered 15 | . . . . . . . 2 . . . 2 2 . . . . . 2 2 5 . . . . . . . . . . . Most Traps Carried 3 | . . . . . . . . 3 2 2 2 . . . . . . 2 2 . . . . 1 1 . . . . . . Time Bombs Activated 3 | . . . . . . . . . . . . . . . . . . . . . 2 1 . . . . . . . . . Exploded 3 | . . . . . . . . . . . . . . . . . . . . . 2 1 . . . . . . . . . Machines | -11 -10 -10 -10 -9 -8 -8 -7 -7 -7 -7 -6 -6 -6 -6 -6 -6 -5 -5 -5 -5 -4 -4 -4 -4 -4 -3 -3 -3 -2 -2 -1 ---------- Run | Scr Mat Min Exi Min Mat Sto Fac Low Low Dat Pro Fac Ext Cet Arc Hub Fac Upp Upp War Pro Fac Upp Upp Zhi Pro Res Qua Res Tes Acc Machines Disabled 39 | . 2 . . . 1 7 . 1 . . . . 1 2 2 2 . . . . . 2 . . . . 1 7 . 4 7 Max in Single Turn 4 | . 2 . . . 1 1 . 1 . . . . 1 1 1 1 . . . . . 1 . . . . 1 1 . 1 4 Garrison Access 8 | . . . . . . 1 2 . . . . . . . . . . . . . . . . . . . 1 1 . 1 2 Network Hub 1 | . . . . . . . . . . . . . . . . 1 . . . . . . . . . . . . . . . Machines Sabotaged 1 | . . . . . . . . . . . . . . . . 1 . . . . . . . . . . . . . . . Garrisons Compromised . | . . . . . . . . . . . . . . . . . . . . . . . . . . . . . . . . Overloaded Fab Kills . | . . . . . . . . . . . . . . . . . . . . . . . . . . . . . . . . Hacking | -11 -10 -10 -10 -9 -8 -8 -7 -7 -7 -7 -6 -6 -6 -6 -6 -6 -5 -5 -5 -5 -4 -4 -4 -4 -4 -3 -3 -3 -2 -2 -1 --------- Run | Scr Mat Min Exi Min Mat Sto Fac Low Low Dat Pro Fac Ext Cet Arc Hub Fac Upp Upp War Pro Fac Upp Upp Zhi Pro Res Qua Res Tes Acc Machines Accessed 111 | . 5 . 1 . 8 13 11 . . 3 . 6 3 1 1 5 9 . . . . 7 . 1 4 1 4 10 1 7 10 Terminals 61 | . 3 . . . 5 10 3 . . . . 3 3 1 . 5 4 . . . . 3 . . . 1 2 7 1 4 6 Fabricators 9 | . . . . . . . 1 . . . . 1 . . . . 2 . . . . 3 . . . . . . . 1 1 Repair Stations 10 | . . . . . 1 1 2 . . . . . . . . . 1 . . . . . . . . . 1 2 . . 2 Recycling Units 7 | . 2 . . . 1 1 1 . . . . 1 . . . . 1 . . . . . . . . . . . . . . Scanalyzers 7 | . . . . . 1 . 2 . . . . 1 . . . . 1 . . . . 1 . . . . . . . 1 . Garrison Access 7 | . . . . . . 1 2 . . . . . . . . . . . . . . . . . . . 1 1 . 1 1 Total Hacks 390 | . 9 . 1 . 25 29 28 . . 26 . 23 14 2 8 14 30 . . . . 32 . 1 17 1 18 54 3 22 33 Successful 201 | . 8 . 1 . 14 16 14 . . 26 . 11 7 . 8 5 16 . . . . 13 . 1 17 1 6 17 1 8 11 Failed 189 | . 1 . . . 11 13 14 . . . . 12 7 2 . 9 14 . . . . 19 . . . . 12 37 2 14 22 Catastrophic 38 | . 1 . . . 2 3 1 . . . . 2 1 . . 2 3 . . . . 2 . . . . 4 10 1 4 2 Database Lockouts . | . . . . . . . . . . . . . . . . . . . . . . . . . . . . . . . . Manual 128 | . 6 . . . 15 11 11 . . . . 7 6 1 . 8 13 . . 1 . 13 . . . . 6 14 . 6 10 Terminals 201 | . 5 . . . 20 22 7 . . . . 11 14 2 . 14 17 . . . . 10 . . . 1 7 31 3 14 23 Fabricators 35 | . . . . . . . 4 . . . . 2 . . . . 4 . . . . 21 . . . . . . . 1 3 Repair Stations 43 | . . . . . 2 5 3 . . . . . . . . . 4 . . . . . . . . . 7 16 . . 6 Recycling Units 14 | . 4 . . . 1 1 2 . . . . 4 . . . . 2 . . . . . . . . . . . . . . Scanalyzers 23 | . . . . . 2 . 7 . . . . 6 . . . . 3 . . . . 1 . . . . . . . 4 . Garrison Access 21 | . . . . . . 1 5 . . . . . . . . . . . . . . . . . . . 4 7 . 3 1 Terminal Hacks 109 | . 3 . 1 . 9 8 2 . . 26 . 4 4 . 8 3 7 . . . . 1 . 1 17 1 2 4 1 4 3 Record 21 | . . . 1 . . . . . . 6 . . . . 8 . . . . . . . . . 5 1 . . . . . Part Schematic 16 | . . . . . 1 . . . . 11 . . . . . . . . . . . . . . 4 . . . . . . Robot Schematic 6 | . . . . . . . . . . 6 . . . . . . . . . . . . . . . . . . . . . Robot Analysis 10 | . 2 . . . 4 . . . . . . . . . . . . . . . . . . . 4 . . . . . . Prototype ID Bank 9 | . . . . . 1 . . . . 3 . . 1 . . . . . . . . . . . 4 . . . . . . Open Door 6 | . . . . . . 3 . . . . . . . . . . . . . . . . . 1 . . 1 1 . . . Level Access Points 2 | . . . . . . . . . . . . . . . . 1 . . . . . . . . . . . . . 1 . Branch Access Points 6 | . . . . . 1 . 1 . . . . 1 . . . . 1 . . . . . . . . . . . 1 . 1 Terminal Index 1 | . . . . . . . . . . . . . . . . . . . . . . . . . . . . . . . 1 Unreport Threat 12 | . . . . . 2 2 . . . . . . . . . . 3 . . . . 1 . . . . . 2 . 1 1 Locate Traps 10 | . 1 . . . . 2 . . . . . 1 2 . . 1 1 . . . . . . . . . 1 . . 1 . Reprogram Traps 2 | . . . . . . . . . . . . 1 . . . . . . . . . . . . . . . . . 1 . Recall Reinforcements 1 | . . . . . . . . . . . . 1 . . . . . . . . . . . . . . . . . . . Hauler Manifests 1 | . . . . . . . 1 . . . . . . . . . . . . . . . . . . . . . . . . Registered Components 1 | . . . . . . . . . . . . . . . . . 1 . . . . . . . . . . . . . . Zone Layout 5 | . . . . . . 1 . . . . . . 1 . . 1 1 . . . . . . . . . . 1 . . . Fabricator Hacks 16 | . . . . . . . 3 . . . . 2 . . . . 2 . . . . 6 . . . . . . . 1 2 Network Status 4 | . . . . . . . . . . . . . . . . . 1 . . . . 1 . . . . . . . 1 1 Load Schematic 4 | . . . . . . . 1 . . . . 1 . . . . . . . . . 2 . . . . . . . . . Build 8 | . . . . . . . 2 . . . . 1 . . . . 1 . . . . 3 . . . . . . . . 1 Repair Station Hacks 24 | . . . . . 1 4 . . . . . . . . . . 3 . . . . . . . . . 2 10 . . 4 Scan Component 13 | . . . . . 1 2 . . . . . . . . . . 2 . . . . . . . . . 1 5 . . 2 Repair 11 | . . . . . . 2 . . . . . . . . . . 1 . . . . . . . . . 1 5 . . 2 Recycling Unit Hacks 5 | . 1 . . . 1 1 1 . . . . . . . . . 1 . . . . . . . . . . . . . . Retrieve Components 5 | . 1 . . . 1 1 1 . . . . . . . . . 1 . . . . . . . . . . . . . . Scanalyzer 13 | . . . . . 2 . 4 . . . . 4 . . . . 2 . . . . 1 . . . . . . . . . Insert Component 7 | . . . . . 1 . 2 . . . . 2 . . . . 1 . . . . 1 . . . . . . . . . Analyze 6 | . . . . . 1 . 2 . . . . 2 . . . . 1 . . . . . . . . . . . . . . Garrison Access Hacks 5 | . . . . . . 1 1 . . . . . . . . . . . . . . . . . . . . 1 . 1 1 Seal Access 5 | . . . . . . 1 1 . . . . . . . . . . . . . . . . . . . . 1 . 1 1 Unauthorized Hacks 29 | . 4 . . . 1 2 3 . . . . 1 3 . . 2 1 . . . . 5 . . . . 2 2 . 2 1 Terminals 18 | . 1 . . . 1 2 1 . . . . 1 3 . . 2 1 . . . . 1 . . . . 1 2 . 1 1 Track 1 | . . . . . . . . . . . . . 1 . . . . . . . . . . . . . . . . . . Assimilate 1 | . . . . . . 1 . . . . . . . . . . . . . . . . . . . . . . . . . Botnet 14 | . 1 . . . 1 1 1 . . . . 1 2 . . 1 1 . . . . 1 . . . . 1 1 . 1 1 Disrupt 1 | . . . . . . . . . . . . . . . . . . . . . . . . . . . . 1 . . . Sabotage 1 | . . . . . . . . . . . . . . . . 1 . . . . . . . . . . . . . . . Fabricators 4 | . . . . . . . . . . . . . . . . . . . . . . 4 . . . . . . . . . Prioritize 2 | . . . . . . . . . . . . . . . . . . . . . . 2 . . . . . . . . . Haulers 1 | . . . . . . . . . . . . . . . . . . . . . . 1 . . . . . . . . . Recompile 1 | . . . . . . . . . . . . . . . . . . . . . . 1 . . . . . . . . . Repair Stations . | . . . . . . . . . . . . . . . . . . . . . . . . . . . . . . . . Recycling Units 3 | . 3 . . . . . . . . . . . . . . . . . . . . . . . . . . . . . . Mask 1 | . 1 . . . . . . . . . . . . . . . . . . . . . . . . . . . . . . Tunnel 2 | . 2 . . . . . . . . . . . . . . . . . . . . . . . . . . . . . . Scanalyzers 2 | . . . . . . . 1 . . . . . . . . . . . . . . . . . . . . . . 1 . Researchers 1 | . . . . . . . . . . . . . . . . . . . . . . . . . . . . . . 1 . Extract 1 | . . . . . . . 1 . . . . . . . . . . . . . . . . . . . . . . . . Garrison Access 2 | . . . . . . . 1 . . . . . . . . . . . . . . . . . . . 1 . . . . Jam 2 | . . . . . . . 1 . . . . . . . . . . . . . . . . . . . 1 . . . . Data Cores Recovered . | . . . . . . . . . . . . . . . . . . . . . . . . . . . . . . . . Used . | . . . . . . . . . . . . . . . . . . . . . . . . . . . . . . . . Hacking Detections 80 | . 4 . . . 7 9 10 . . . . 5 3 1 . 4 8 . . . . 5 . . . . 3 7 1 5 8 Full Trace Events 10 | . . . . . 1 1 1 . . . . 1 . . . . . . . . . 2 . . . . . 2 . . 2 Feedback Events . | . . . . . . . . . . . . . . . . . . . . . . . . . . . . . . . . Feedback Blocked . | . . . . . . . . . . . . . . . . . . . . . . . . . . . . . . . . Robot Schematics Acquired 7 | . . . . . . . . . . 6 . . . . . . . . . . . . . . . . . . . 1 . Robots Built 4 | . . . . . . . . . . . . . . . . . . . . . . . . . . . . . . . 4 Authchips . | . . . . . . . . . . . . . . . . . . . . . . . . . . . . . . . . Time 68 | . . . . . . . . . . . . . . . . . . . . . . . . . . . . . . . 68 Total Robot Build Rating 32 | . . . . . . . . . . . . . . . . . . . . . . . . . . . . . . . 32 Part Schematics Acquired 32 | . . . . . 2 . 8 . . 11 . 2 . . . . 1 . . . . . . . 4 . . . . 4 . Parts Built 10 | . . . . . . . 4 . . . . 2 . . . . 1 . . . . 3 . . . . . . . . . Authchips 2 | . . . . . . . . . . . . 1 . . . . . . . . . 1 . . . . . . . . . Time 670 | . . . . . . . 212 . . . . 95 . . . . 42 . . . . 321 . . . . . . . . . Total Part Build Rating 65 | . . . . . . . 24 . . . . 10 . . . . 8 . . . . 23 . . . . . . . . . Parts Repaired 11 | . . . . . . 2 . . . . . . . . . . 1 . . . . . . . . . 1 5 . . 2 Time 627 | . . . . . . 140 . . . . . . . . . . 108 . . . . . . . . . 54 274 . . 51 Parts Recycled . | . . . . . . . . . . . . . . . . . . . . . . . . . . . . . . . . Recycled Matter . | . . . . . . . . . . . . . . . . . . . . . . . . . . . . . . . . Retrieved Matter . | . . . . . . . . . . . . . . . . . . . . . . . . . . . . . . . . Retrieved Components 18 | . 1 . . . 3 4 3 . . . . . . . . . 7 . . . . . . . . . . . . . . Parts Scanalyzed 6 | . . . . . 1 . 2 . . . . 2 . . . . 1 . . . . . . . . . . . . . . Part Schematics Acquired 6 | . . . . . 1 . 2 . . . . 2 . . . . 1 . . . . . . . . . . . . . . Parts Damaged . | . . . . . . . . . . . . . . . . . . . . . . . . . . . . . . . . Bothacking | -11 -10 -10 -10 -9 -8 -8 -7 -7 -7 -7 -6 -6 -6 -6 -6 -6 -5 -5 -5 -5 -4 -4 -4 -4 -4 -3 -3 -3 -2 -2 -1 ------------ Run | Scr Mat Min Exi Min Mat Sto Fac Low Low Dat Pro Fac Ext Cet Arc Hub Fac Upp Upp War Pro Fac Upp Upp Zhi Pro Res Qua Res Tes Acc Used RIF Installer . | . . . . . . . . . . . . . . . . . . . . . . . . . . . . . . . . Robots Hacked 2 | . . . . . . . . . . 1 . . 1 . . . . . . . . . . . . . . . . . . Non-combat . | . . . . . . . . . . . . . . . . . . . . . . . . . . . . . . . . Combat 2 | . . . . . . . . . . 1 . . 1 . . . . . . . . . . . . . . . . . . Robot Hacks Applied 2 | . . . . . . . . . . 1 . . 1 . . . . . . . . . . . . . . . . . . parse_system 2 | . . . . . . . . . . 1 . . 1 . . . . . . . . . . . . . . . . . . Relay Couplers Released 2 | . . . . . . . . . . . . . . . . . . . . . . . . . . . . . . . 2 Machine Destruction 2 | . . . . . . . . . . . . . . . . . . . . . . . . . . . . . . . 2 Fabnet Peak Effective % . | . . . . . . . . . . . . . . . . . . . . . . . . . . . . . . . . Robots Rewired 26 | . . . . . . . . 3 2 . 2 . 15 . . . . . . 4 . . . . . . . . . . . Allies Hacked . | . . . . . . . . . . . . . . . . . . . . . . . . . . . . . . . . Hacks Repelled . | . . . . . . . . . . . . . . . . . . . . . . . . . . . . . . . . Allies | -11 -10 -10 -10 -9 -8 -8 -7 -7 -7 -7 -6 -6 -6 -6 -6 -6 -5 -5 -5 -5 -4 -4 -4 -4 -4 -3 -3 -3 -2 -2 -1 -------- Run | Scr Mat Min Exi Min Mat Sto Fac Low Low Dat Pro Fac Ext Cet Arc Hub Fac Upp Upp War Pro Fac Upp Upp Zhi Pro Res Qua Res Tes Acc Total Allies 51 | . . . . . . 12 . 3 2 . 3 . 23 . . . . . . 4 . . . . . . . . . . 4 Largest Group 18 | . . . . . . 10 8 3 3 2 2 1 18 18 7 . . . . 4 . . . . . . . . . . 4 Highest-Rated Group 652 | . . . . . . 173 141 93 93 60 96 24 652 652 317 . . . . 204 . . . . . . . . . . 120 Highest-Rated Ally 159 | . . . . . . 31 29 31 31 30 96 24 159 159 143 . . . . 65 . . . . . . . . . . 30 Total Orders 8 | . . . . . . 1 . 2 . . 2 1 . . . . . . . 2 . . . . . . . . . . . STAY 5 | . . . . . . 1 . 1 . . 1 1 . . . . . . . 1 . . . . . . . . . . . FOLLOW 3 | . . . . . . . . 1 . . 1 . . . . . . . . 1 . . . . . . . . . . . Ally Attacks 438 | . . . . . . 54 112 . 38 . 26 . 39 79 27 . . . . 14 . . . . . . . . . . 49 Total Damage 8022 | . . . . . . 674 1379 . 577 . 933 . 904 1690 508 . . . . 505 . . . . . . . . . . 852 Kills 65 | . . . . . . 9 11 . 7 . 6 . 6 14 7 . . . . 2 . . . . . . . . . . 3 Allies Corrupted . | . . . . . . . . . . . . . . . . . . . . . . . . . . . . . . . . Allies Melted 1 | . . . . . . . . . . . 1 . . . . . . . . . . . . . . . . . . . . Intel | -11 -10 -10 -10 -9 -8 -8 -7 -7 -7 -7 -6 -6 -6 -6 -6 -6 -5 -5 -5 -5 -4 -4 -4 -4 -4 -3 -3 -3 -2 -2 -1 ------- Run | Scr Mat Min Exi Min Mat Sto Fac Low Low Dat Pro Fac Ext Cet Arc Hub Fac Upp Upp War Pro Fac Upp Upp Zhi Pro Res Qua Res Tes Acc Robot Analysis Total 10 | . 2 . . . 4 . . . . . . . . . . . . . . . . . . . 4 . . . . . . Derelict Logs Recovered 13 | . . 1 . 1 . . . 1 1 . 1 . . . . . . 1 2 . 1 . 2 2 . . . . . . . Drone Launches . | . . . . . . . . . . . . . . . . . . . . . . . . . . . . . . . . Drone Recoveries . | . . . . . . . . . . . . . . . . . . . . . . . . . . . . . . . . Exploration | -11 -10 -10 -10 -9 -8 -8 -7 -7 -7 -7 -6 -6 -6 -6 -6 -6 -5 -5 -5 -5 -4 -4 -4 -4 -4 -3 -3 -3 -2 -2 -1 ------------- Run | Scr Mat Min Exi Min Mat Sto Fac Low Low Dat Pro Fac Ext Cet Arc Hub Fac Upp Upp War Pro Fac Upp Upp Zhi Pro Res Qua Res Tes Acc Turns Passed 38005 | 8 599 1686 263 1043 984 2825 1544 2667 1894 121 1724 1295 1903 338 348 783 1362 2170 1571 1235 531 1440 823 924 296 396 1001 1872 371 503 3485 Spaces Moved 19885 | 4 282 992 164 612 418 1180 818 1354 1262 89 1164 659 796 170 151 343 610 1225 917 524 254 549 489 560 147 218 438 815 307 370 2004 Core 1 | . . . . . . . . . . . . . . . . . . . . . . . . . . . . . . . 1 Treads 12541 | 4 282 992 164 612 418 1180 818 1295 . . . 181 606 170 151 343 610 1225 917 459 18 489 470 560 147 218 205 1 . . 6 Legs 380 | . . . . . . . . . . . . . . . . . . . . 65 236 60 19 . . . . . . . . Wheels 6963 | . . . . . . . . 59 1262 89 1164 478 190 . . . . . . . . . . . . . 233 814 307 370 1997 Hover . | . . . . . . . . . . . . . . . . . . . . . . . . . . . . . . . . Flight . | . . . . . . . . . . . . . . . . . . . . . . . . . . . . . . . . Fastest Speed 100 | 160 160 160 160 160 160 155 156 130 130 130 130 115 155 160 160 160 160 160 160 160 160 160 160 160 160 160 130 110 110 110 100 Average Speed 148 | 160 160 160 160 160 160 159 156 157 130 130 130 144 160 160 160 160 160 160 160 163 181 172 161 160 160 160 148 139 110 110 116 Slowest Speed 260 | 160 160 160 160 160 160 160 160 160 130 130 130 260 170 160 160 160 160 160 160 240 246 240 190 160 160 160 240 165 110 110 170 Overloaded Moves . | . . . . . . . . . . . . . . . . . . . . . . . . . . . . . . . . Propulsion Burnouts . | . . . . . . . . . . . . . . . . . . . . . . . . . . . . . . . . Robots Hopped . | . . . . . . . . . . . . . . . . . . . . . . . . . . . . . . . . Cave-ins Triggered 1 | . . . . . . . . . . . . . . . . . . . . 1 . . . . . . . . . . . Teleports 1 | . . . . . . . . . . . . . . . . . . . . . . . . . . . . . . . 1 Exploration Rate (%) 59 | 2 47 99 54 99 32 96 24 95 99 74 90 17 84 67 89 50 16 92 93 73 40 15 71 71 60 41 14 86 15 43 54 Regions Visited 31 Branch Regions 22 Pre-discovered Areas 14 | . 2 1 1 1 . . . . 1 1 1 . . . . . . . . . 1 . 1 1 3 . . . . . . Known Exits Taken 11 | . . . . . 1 . 1 . . . . 1 . . . 1 1 1 1 1 . . . . . 1 . . 1 1 . Unknown Exits Taken 20 | 1 1 1 1 1 . 1 . 1 1 1 1 . 1 1 1 . . . . . 1 1 1 1 1 . 1 1 . . . Scrap Searched 22 | . . 1 . 2 . . . 2 5 . 2 . . . . . . 2 2 . . . 4 . . 2 . . . . . Spaces Dug 630 | . . 25 . . . 2 . . . . 46 . . . . . . 28 1 2 29 7 . . . 13 . 9 . . 468 Terrain Destroyed 1343 | . 29 54 . . . 41 32 35 90 . 48 47 . 3 . 34 3 56 5 97 51 42 48 . . 13 29 19 2 5 560 Melee 24 | . . . . . . 2 . . . . 11 . . . . . . . . 2 . 7 . . . . . . . . 2 Projectile 101 | . . . . . . . . . . . 3 . . 3 . 2 3 1 5 17 . . . . . . . 19 2 5 41 AOE 1216 | . 29 54 . . . 39 32 35 90 . 34 47 . . . 32 . 55 . 78 51 35 48 . . 13 29 . . . 515 Terrain Rammed . | . . . . . . . . . . . . . . . . . . . . . . . . . . . . . . . . Walls Destroyed . | . . . . . . . . . . . . . . . . . . . . . . . . . . . . . . . . Machines Disabled . | . . . . . . . . . . . . . . . . . . . . . . . . . . . . . . . . Actions | -11 -10 -10 -10 -9 -8 -8 -7 -7 -7 -7 -6 -6 -6 -6 -6 -6 -5 -5 -5 -5 -4 -4 -4 -4 -4 -3 -3 -3 -2 -2 -1 --------- Run | Scr Mat Min Exi Min Mat Sto Fac Low Low Dat Pro Fac Ext Cet Arc Hub Fac Upp Upp War Pro Fac Upp Upp Zhi Pro Res Qua Res Tes Acc Total 26111 | 5 380 1056 165 662 644 1946 1032 1831 1436 92 1297 874 1292 221 240 456 926 1402 985 770 307 1025 517 590 195 241 664 1373 333 438 2716 Wait 3549 | . 30 27 . 16 146 582 121 393 56 . 65 115 239 16 76 39 228 124 36 44 18 265 5 3 . 1 102 392 5 32 373 Move 19853 | 3 281 991 163 611 417 1179 817 1353 1261 88 1163 658 795 169 150 342 609 1224 916 523 253 548 488 559 146 217 437 814 306 369 2003 Hop . | . . . . . . . . . . . . . . . . . . . . . . . . . . . . . . . . Pick Up 234 | . 16 3 1 8 6 5 14 13 1 . 4 12 7 6 . 8 9 9 2 15 1 11 3 7 2 . 15 30 6 4 16 Fast Attach 197 | . 4 . . 1 5 13 2 2 1 . 2 6 10 4 3 2 7 . . 13 4 16 1 . 8 1 18 18 2 5 49 Attach 121 | . 2 2 . 2 6 1 3 1 . . . 13 4 1 2 8 4 1 . 8 7 8 2 2 2 . 6 10 3 1 22 Detach 57 | . 1 . . . 2 4 . 1 . . 1 4 2 . . 2 . . . 1 5 7 1 . 2 . 4 8 . 1 11 Swap 231 | 2 1 6 . 5 5 32 14 14 21 3 16 5 11 1 . 2 8 12 9 11 2 8 3 3 2 3 5 7 2 4 14 Drop 272 | . 7 2 1 9 9 31 15 15 5 . 5 4 14 13 2 1 12 9 2 16 3 9 . 6 9 1 15 14 6 9 28 Fire 1177 | . 29 19 . 9 43 89 21 28 33 . 23 57 62 11 7 49 39 20 18 59 12 142 14 10 24 18 62 80 3 13 183 Melee 48 | . . . . . . 6 . . . 1 16 . 1 . . . . . . 6 . 7 . . . . . . . . 11 Ram 1 | . . . . . . . . . . . . . . . . . . . . . . . . . . . . . . . 1 Kick 1 | . . . . . . . . . . . . . . . . . . . . . . 1 . . . . . . . . . Crush 47 | . 9 6 . 1 5 3 2 . . . . . 1 . . 3 10 . . . . 2 . . . . . . . . 5 Escape Stasis 16 | . . . . . . . . . . . . . 16 . . . . . . . . . . . . . . . . . . Rewire 271 | . . . . . . 1 . 8 58 . . . 130 . . . . . . 74 . . . . . . . . . . . Trap 36 | . . . . . . . 23 3 . . 2 . . . . . . 3 2 . 2 1 . . . . . . . . . Miscellaneous . | . . . . . . . . . . . . . . . . . . . . . . . . . . . . . . . . Route ------- -11/Scrapyard -10/Materials (discovered 2 exits: [*Mat] / [*Min]) -10/Mines (discovered 3 exits: [*Mat x2] / *Exi) -10/Exiles -9/Mines (discovered 2 exits: *Mat x2) -8/Materials -8/Storage -7/Factory (discovered 2 exits: *Low x2) -7/Lower Caves -7/Lower Caves (discovered 2 exits: *Fac / *Dat) -7/Data Miner -6/Proximity Caves -6/Factory (discovered 4 exits: Low x2 / *Ext x2) -6/Extension (discovered 2 exits: *Fac / *Cet) -6/Cetus (discovered 2 exits: *Fac / *Arc) -6/Archives (discovered 3 exits: *Fac / *Hub x2) -6/Hub_04(d) (discovered 4 exits: *Fac x4) -5/Factory (discovered 2 exits: *Upp x2) -5/Upper Caves -5/Upper Caves (discovered 2 exits: *Fac / *War) -5/Warlord -4/Proximity Caves -4/Factory (discovered 3 exits: Res / [*Upp x2]) -4/Upper Caves -4/Upper Caves (discovered 2 exits: *Res / *Zhi) -4/Zhirov -3/Proximity Caves -3/Research (discovered 2 exits: Arm / *Qua) -3/Quarantine -2/Research (discovered 2 exits: *Tes x2) -2/Testing -1/Access (discovered 2 exits: [*Sur] / Com) To Epsilon Eridani History --------- Turn | Location | Event 4 | -11/Scrapyard | Discovered new exit (range 2) 9 | -11/Scrapyard | Entered Materials 35 | -10/Materials | Discovered new exit (range 4) 318 | -10/Materials | Build established: Mutant 403 | -10/Materials | Discovered new exit (range 12) 608 | -10/Materials | Entered Mines 621 | -10/Mines | Met a Derelict bent on vengeance 864 | -10/Mines | Deemed a non-threat by the Exiles lab entrance 1281 | -10/Mines | Discovered new exit (range 8) 1303 | -10/Mines | Learned Materials stockpile data 1543 | -10/Mines | Discovered new exit (range 6) 2287 | -10/Mines | Discovered new exit (range 5) 2294 | -10/Mines | Entered Exiles 2342 | -10/Exiles | Met 8R-AWN 2368 | -10/Exiles | Met EX-HEX 2446 | -10/Exiles | Met EX-DEC 2477 | -10/Exiles | Learned location of Zion (-6) 2536 | -10/Exiles | Discovered new exit (range 14) 2557 | -10/Exiles | Entered Mines 2647 | -9/Mines | A weapon hastily lodged in a ceiling crevice suddenly fell to the ground 2849 | -9/Mines | Received a Rocket Launcher from a helpful Derelict 2999 | -9/Mines | Joined a pair of Derelicts in attacking an 0b10 outpost 3167 | -9/Mines | Discovered new exit (range 7) 3205 | -9/Mines | Found a damaged Exp. Sensor Array with a note attached 3209 | -9/Mines | Found Prototype Device 3258 | -9/Mines | Discovered new exit (range 11) 3343 | -9/Mines | Build established: Scavenger-Mutant 3600 | -9/Mines | Entered Materials 3600 | -8/Materials | Evolved 4 slots: Propulsion x1, Utility x2, Weapon x1 3829 | -8/Materials | Identified exit to Storage 4016 | -8/Materials | Build established: Scavenger-Gunner 4237 | -8/Materials | Identified Exp. Sensor Array 4584 | -8/Materials | Entered Storage 4616 | -8/Storage | Garrison activated, responded to threat 4907 | -8/Storage | Repaired Exp. Sensor Array 4940 | -8/Storage | Repaired Disposable Heat Sink 5075 | -8/Storage | Build established: Scavenger-Mutant 5209 | -8/Storage | Found Prototype Processor 5209 | -8/Storage | Identified Exp. Targeting Computer 5643 | -8/Storage | Build established: Scavenger-Gunner 6212 | -8/Storage | Allied Derelicts emerged from ambush trap array 6584 | -8/Storage | First assault squad dispatched 6813 | -8/Storage | Found Prototype Launcher 6813 | -8/Storage | Identified Scatter Rocket Array 6976 | -8/Storage | Assisted by bots powering up and referring to "LRC-V3" 7311 | -8/Storage | Discovered new exit (range 15) 7409 | -8/Storage | Entered Factory 7409 | -7/Factory | Accompanied by 8 allies 7409 | -7/Factory | Evolved 2 slots: Propulsion x1, Utility x1 7589 | -7/Factory | Build established: Commander-Gunner 8208 | -7/Factory | Build established: Gunner 8209 | -7/Factory | First assault squad dispatched 8219 | -7/Factory | Identified exit to Lower Caves 8694 | -7/Factory | Fabricated Adv. Trap Scanner (x2) 8794 | -7/Factory | Fabricated Plasma Rifle? 8953 | -7/Factory | Entered Lower Caves 9969 | -7/Lower Caves | Attracted the attention of an 0b10 checkpoint 10081 | -7/Lower Caves | Learned location of 1 exit from Factory 10083 | -7/Lower Caves | Attacked by a delusional Derelict stockpiling Unaware 10710 | -7/Lower Caves | Build established: Mutant 10963 | -7/Lower Caves | Attacked by a faux Warlord 11101 | -7/Lower Caves | Build established: Gunner 11245 | -7/Lower Caves | Discovered new exit (range 10) 11620 | -7/Lower Caves | Entered another Lower Caves area 11620 | -7/Lower Caves | Accompanied by 3 allies 11669 | -7/Lower Caves | Discovered new exit (range 12) 12158 | -7/Lower Caves | Attracted the attention of an 0b10 outpost 12580 | -7/Lower Caves | Learned location of Extension (-6) 13025 | -7/Lower Caves | Discovered new exit (range 10) 13514 | -7/Lower Caves | Entered Data Miner 13514 | -7/Data Miner | Accompanied by 2 allies 13514 | -7/Data Miner | Discovered new exit (range 6) 13539 | -7/Data Miner | Met Data Miner 13583 | -7/Data Miner | Learned location of Section 7 (-2) 13583 | -7/Data Miner | Acquired the access code to Warlord's prototype stash 13601 | -7/Data Miner | Received God Mode back door access code from Data Miner 13612 | -7/Data Miner | Build established: Mutant 13635 | -7/Data Miner | Entered Proximity Caves 13635 | -6/Proximity Caves | Accompanied by 2 allies 13732 | -6/Proximity Caves | Escorted by Enhanced Grunt 14143 | -6/Proximity Caves | Build established: Gunner 14172 | -6/Proximity Caves | Spotted B-75 Beast 15110 | -6/Proximity Caves | Discovered new exit (range 9) 15359 | -6/Proximity Caves | Entered Factory 15359 | -6/Factory | Accompanied by 1 ally 15359 | -6/Factory | Evolved 2 slots: Utility x2 15360 | -6/Factory | Identified exit to Extension 15415 | -6/Factory | Identified exit to Lower Caves 15864 | -6/Factory | Incoming investigation squad redirected 16093 | -6/Factory | Fabricated Spk. Medium Treads (x2) 16273 | -6/Factory | Lost 7 parts (1p2n1u3w) 16654 | -6/Factory | Entered Extension 17140 | -6/Extension | Build established: Machinist-Gunner 17223 | -6/Extension | Spotted B-75 Beast 17259 | -6/Extension | Rescued a captive Derelict 17664 | -6/Extension | Destroyed B-75 Beast 17706 | -6/Extension | Spotted B-75 Beast 17750 | -6/Extension | Destroyed B-75 Beast 17880 | -6/Extension | Rescued a captive Derelict 18021 | -6/Extension | Build established: Scavenger-Tank 18167 | -6/Extension | Rescued a captive Derelict 18168 | -6/Extension | Rescued a captive Derelict 18188 | -6/Extension | Rescued a captive Derelict 18199 | -6/Extension | Rescued A7 18234 | -6/Extension | Rescued a captive Derelict 18235 | -6/Extension | Rescued a captive Derelict 18522 | -6/Extension | Discovered new exit (range 10) 18523 | -6/Extension | Discovered new exit (range 6) 18557 | -6/Extension | Entered Cetus 18557 | -6/Cetus | Accompanied by 18 allies (A7) 18562 | -6/Cetus | Acquired a Cetus Manufacturing Module code from A7 18583 | -6/Cetus | Spotted Cetus Guard 18583 | -6/Cetus | Spotted Cetus Guard 18584 | -6/Cetus | Spotted Cetus Guard 18593 | -6/Cetus | Allies destroyed Cetus Guard 18593 | -6/Cetus | Spotted Cetus Guard 18596 | -6/Cetus | Allies destroyed Cetus Guard 18597 | -6/Cetus | Allies destroyed Cetus Guard 18607 | -6/Cetus | Allies destroyed Cetus Guard 18609 | -6/Cetus | Cetus Manufacturing Module disabled 18680 | -6/Cetus | Failed to start Cetus Manufacturing Module 18692 | -6/Cetus | Escorted A7 to Cetus Mainframe 18716 | -6/Cetus | Discovered new exit (range 16) 18749 | -6/Cetus | Spotted Cetus Guard 18749 | -6/Cetus | Spotted Cetus Guard 18751 | -6/Cetus | Spotted Cetus Guard 18752 | -6/Cetus | Spotted Cetus Guard 18756 | -6/Cetus | Allies destroyed Cetus Guard 18760 | -6/Cetus | Discovered new exit (range 16) 18763 | -6/Cetus | Allies destroyed Cetus Guard 18763 | -6/Cetus | Allies destroyed Cetus Guard 18765 | -6/Cetus | Allies destroyed Cetus Guard 18793 | -6/Cetus | System corruption reached 10% 18797 | -6/Cetus | Met Revision 17 18807 | -6/Cetus | Destroyed Revision 17 18895 | -6/Cetus | Entered Archives 18895 | -6/Archives | Accompanied by 7 allies (A7) 18900 | -6/Archives | Received a hacking code to weaken MAIN.C 18962 | -6/Archives | Met Zhirov 18968 | -6/Archives | Reinforcements dispatched to Archives 18982 | -6/Archives | Discovered new exit (range 16) 18991 | -6/Archives | Read partially decrypted archive contents 18995 | -6/Archives | Discovered new exit (range 15) 19013 | -6/Archives | Reinforcements dispatched to Archives 19015 | -6/Archives | Zhirov warped through subspace 19033 | -6/Archives | Zhirov detonated Archives 19140 | -6/Archives | Discovered new exit (range 15) 19243 | -6/Archives | Entered Hub_04(d) 19442 | -6/Hub_04(d) | Garrison activated, responded to threat 19487 | -6/Hub_04(d) | Spotted B-75 Beast 19506 | -6/Hub_04(d) | Destroyed B-75 Beast 19527 | -6/Hub_04(d) | Destroyed 7 combat bots 19640 | -6/Hub_04(d) | Lost 3 parts (1n1u1w) 19769 | -6/Hub_04(d) | Identified exit to Factory 19943 | -6/Hub_04(d) | First assault squad dispatched 19961 | -6/Hub_04(d) | Network Hub disabled 19969 | -6/Hub_04(d) | Incoming assault squad redirected 19984 | -6/Hub_04(d) | Core integrity fell below 50% 20026 | -6/Hub_04(d) | Entered Factory 20026 | -5/Factory | Evolved 2 slots: Power x1, Propulsion x1 20048 | -5/Factory | Found Hvy. Reflective Plating 20523 | -5/Factory | Repaired Centrium Heavy Treads 20970 | -5/Factory | Identified exit to Upper Caves 21177 | -5/Factory | Fabricated Com. HERF Cannon? 21356 | -5/Factory | Spotted B-75 Beast 21388 | -5/Factory | Entered Upper Caves 21411 | -5/Upper Caves | Learned Factory security intel 21720 | -5/Upper Caves | Build established: Scavenger-Skirmisher 21797 | -5/Upper Caves | Attracted the attention of an 0b10 outpost 21860 | -5/Upper Caves | Destroyed 7 combat bots 23029 | -5/Upper Caves | Discovered new exit (range 5) 23036 | -5/Upper Caves | Identified exit to Upper Caves 23558 | -5/Upper Caves | Entered another Upper Caves area 23629 | -5/Upper Caves | Discovered new exit (range 13) 23907 | -5/Upper Caves | Learned location of 1 exit from Factory 24969 | -5/Upper Caves | Spotted B-75 Beast 25038 | -5/Upper Caves | Discovered new exit (range 11) 25127 | -5/Upper Caves | Identified exit to Warlord 25129 | -5/Upper Caves | Entered Warlord 25518 | -5/Warlord | Met Warlord 25539 | -5/Warlord | Opened Warlord's prototype stash 25543 | -5/Warlord | Warlord's base attacked by MAIN.C 25549 | -5/Warlord | Found Prototype Processor 25549 | -5/Warlord | Identified Exp. Armor Integrity Analyzer 25559 | -5/Warlord | Found System Mapper 25569 | -5/Warlord | Found Prototype Reactor 25836 | -5/Warlord | Build established: Scavenger-Gunner 25893 | -5/Warlord | Warlord forces counterattacked 25943 | -5/Warlord | Spotted Executioner 26004 | -5/Warlord | Spotted Striker 26007 | -5/Warlord | Spotted Executioner 26046 | -5/Warlord | Spotted Executioner 26046 | -5/Warlord | Spotted Executioner 26047 | -5/Warlord | Destroyed B-75 Beast 26049 | -5/Warlord | Spotted B-86 Titan 26063 | -5/Warlord | Destroyed Executioner 26098 | -5/Warlord | Destroyed B-86 Titan 26105 | -5/Warlord | Destroyed Executioner 26116 | -5/Warlord | Discovered new exit (range 14) 26128 | -5/Warlord | Crushed by falling debris 26156 | -5/Warlord | Spotted Executioner 26162 | -5/Warlord | Spotted Striker 26186 | -5/Warlord | Destroyed 8 combat bots 26191 | -5/Warlord | Destroyed Striker 26199 | -5/Warlord | Destroyed Executioner 26218 | -5/Warlord | Warlord base infiltrated, sounded retreat 26227 | -5/Warlord | Lost 9 parts (1p2n3u3w) 26326 | -5/Warlord | Found Prototype Launcher 26326 | -5/Warlord | Identified Chain Missile Launcher 26362 | -5/Warlord | System corruption reached 10% 26362 | -5/Warlord | Identified exit to Proximity Caves 26364 | -5/Warlord | Entered Proximity Caves 26375 | -4/Proximity Caves | Destroyed 10 combat bots 26797 | -4/Proximity Caves | Discovered new exit (range 9) 26806 | -4/Proximity Caves | Attracted the attention of an 0b10 checkpoint 26891 | -4/Proximity Caves | Build established: Scavenger-Mutant 26895 | -4/Proximity Caves | Entered Factory 26895 | -4/Factory | Evolved 2 slots: Propulsion x1, Utility x1 26896 | -4/Factory | Identified exit to Research 26968 | -4/Factory | Incoming investigation squad redirected 27021 | -4/Factory | Identified Vortex Chain Reactor 27049 | -4/Factory | Found Quantum Capacitor 27203 | -4/Factory | Fabricated Centrium Heavy Treads (x1) 27556 | -4/Factory | Lost 4 parts (1p2n1u) 27874 | -4/Factory | Lost 5 parts (1p1n3u) 27888 | -4/Factory | Destroyed 8 combat bots 27928 | -4/Factory | Discovered new exit (range 6) 27964 | -4/Factory | Discovered new exit (range 14) 27999 | -4/Factory | Spotted B-86 Titan 28109 | -4/Factory | Fabricated HERF Cannon (x1) 28153 | -4/Factory | Incoming investigation squad redirected 28240 | -4/Factory | Fabricated Centrium Heavy Treads (x1) 28335 | -4/Factory | Entered Upper Caves 28345 | -4/Upper Caves | Learned Research garrison access intel 28355 | -4/Upper Caves | Learned location of Armory (-3) 28890 | -4/Upper Caves | Discovered new exit (range 8) 29158 | -4/Upper Caves | Entered another Upper Caves area 29197 | -4/Upper Caves | Discovered exit to Research (range 11) 29214 | -4/Upper Caves | Encountered a Warlord checkpoint 29777 | -4/Upper Caves | Build established: Scavenger-Gunner 29840 | -4/Upper Caves | Learned location of 1 exit from Proximity Caves 29880 | -4/Upper Caves | Discovered new exit (range 5) 29890 | -4/Upper Caves | Learned location of Quarantine (-3) 30082 | -4/Upper Caves | Entered Zhirov 30082 | -4/Zhirov | Discovered new exit (range 3) 30148 | -4/Zhirov | Learned location of Testing (-2) 30148 | -4/Zhirov | Learned location of Command (-1) 30182 | -4/Zhirov | Found Alien Artifact 30182 | -4/Zhirov | Identified Integrated Dissipator 30182 | -4/Zhirov | Installed Integrated Dissipator, increased core heat dissipation (+20) 30306 | -4/Zhirov | Found Alien Artifact 30378 | -4/Zhirov | Entered Proximity Caves 30401 | -3/Proximity Caves | System corruption reached 10% 30421 | -3/Proximity Caves | Destroyed 7 combat bots 30670 | -3/Proximity Caves | Build established: Scavenger-Tank 30774 | -3/Proximity Caves | Entered Research 30774 | -3/Research | Evolved 2 slots: Utility x1, Weapon x1 30775 | -3/Research | Identified exit to Armory 30776 | -3/Research | Loaded intel: 2 garrison access locations 30948 | -3/Research | Incoming investigation squad redirected 31136 | -3/Research | Lost 3 parts (1n1u1w) 31274 | -3/Research | First assault squad dispatched 31294 | -3/Research | Found Prototype Hackware 31294 | -3/Research | Identified Exp. System Shield 31538 | -3/Research | Repaired Centrium Heavy Treads? 31577 | -3/Research | Build established: Hacker-Gunner 31766 | -3/Research | Discovered new exit (range 9) 31775 | -3/Research | Entered Quarantine 31778 | -3/Quarantine | System corruption reached 10% 32452 | -3/Quarantine | Repaired Hcp. Storage Unit 32457 | -3/Quarantine | Lost 4 parts (3u1w) 32558 | -3/Quarantine | Repaired Quantum Rifle? 32611 | -3/Quarantine | Repaired Hvy. Missile Launcher? 32726 | -3/Quarantine | Repaired Quantum Rifle 32896 | -3/Quarantine | Found Sigix Corpse 32903 | -3/Quarantine | Found Sigix Corpse 33096 | -3/Quarantine | Found Alien Artifact 33100 | -3/Quarantine | Identified Phase Redirector 33192 | -3/Quarantine | Repaired Quantum Rifle 33220 | -3/Quarantine | Build established: Scavenger-Gunner 33356 | -3/Quarantine | Cryocooling Duct disabled 33371 | -3/Quarantine | Ambient heat levels rising (+20) 33371 | -3/Quarantine | Non-combat units ordered to evacuate 33497 | -3/Quarantine | Found Alien Artifact 33499 | -3/Quarantine | Identified Subatomic Replicator 33499 | -3/Quarantine | Used Subatomic Replicator to replicate Sigix Corpse 33588 | -3/Quarantine | Discovered new exit (range 4) 33615 | -3/Quarantine | Spotted Alpha 7 33633 | -3/Quarantine | Found Alien Launcher 33647 | -3/Quarantine | Entered Research 33647 | -2/Research | Warlord forces began assault on 0b10 33647 | -2/Research | Evolved 2 slots: Utility x2 33726 | -2/Research | Identified exit to Testing 33757 | -2/Research | Research machine network offline 33852 | -2/Research | Met up with Warlord 33892 | -2/Research | Found Com. Tesla Bomb Launcher 33912 | -2/Research | Build established: Hacker-Gunner 34018 | -2/Research | Entered Testing 34204 | -2/Testing | Spotted Striker 34261 | -2/Testing | Spotted PP-OT5TFW62SP 34364 | -2/Testing | Identified exit to Access 34521 | -2/Testing | Entered Access 34521 | -1/Access | Evolved 2 slots: Power x1, Utility x1 34640 | -1/Access | Fabricated S-43 Plague? 34652 | -1/Access | Garrison activated, responded to threat 34684 | -1/Access | Repaired Dispersion Rifle 34714 | -1/Access | Spotted B-99 Colossus 34720 | -1/Access | Identified exit to Command 34783 | -1/Access | Lost 3 parts (1p1u1w) 35017 | -1/Access | Repaired Adv. Coolant Injector 35328 | -1/Access | System corruption reached 10% 35335 | -1/Access | Lost 4 parts (2u2w) 35617 | -1/Access | Spotted B-99 Colossus 36366 | -1/Access | Build established: Generator-Gunner 36771 | -1/Access | First assault squad dispatched 37046 | -1/Access | Incoming assault squad redirected 37261 | -1/Access | Spotted B-99 Colossus 37404 | -1/Access | Incoming assault squad redirected 37469 | -1/Access | Identified Transdimensional Reconstructor 37469 | -1/Access | Warped through subspace 37484 | -1/Access | Incoming assault squad redirected 37548 | -1/Access | Incoming assault squad redirected 37572 | -1/Access | Spotted B-99 Colossus 37692 | -1/Access | Lost 4 parts (1p2u1w) 37718 | -1/Access | Garrison activated, responded to threat 37799 | -1/Access | Lost 3 parts (1n1u1w) 37826 | -1/Access | Incoming assault squad redirected 37913 | -1/Access | Identified Sigix Terminator 37914 | -1/Access | Fired Sigix Terminator 37932 | -1/Access | Lost 12 parts (3p3n4u2w) 37995 | -1/Access | Discovered new exit (range 8) 37999 | -1/Access | Spotted B-99 Colossus 38005 | -1/Access | Core integrity fell below 50% 38006 | *** | Escaped! Last Messages --------------- 38000_ Penetrated by Slug. 38000_ Slug penetrates Terminal. 38000_ Slug penetrates Reinforced Barrier. 38000_ Penetrated by Slug. 38000_ Slug penetrates Terminal. 38002_ Penetrated by Slug. 38002_ Slug penetrates H-81 Overseer. 38004_ Biometal Heavy Treads destroyed. 38004_ Penetrated by Slug. 38004_ Slug penetrates Terminal. 38004_ C-30 ARC bursts open, deploying its payload. 38004_ G-73 Enforcer unfolds itself. 38004_ L-61 Swordsman unfolds itself. 38004_ G-73 Enforcer unfolds itself. 38004_ I-47 Archangel unfolds itself. 38004_ Adv. Targeting Computer destroyed. 38004_ R-10 Processor collects Med. Treads. 38006_ Penetrated by Slug. 38006_ Adv. Heat Sink destroyed. 38006_ Penetrated by Slug. Map ----- +----------------------------------------------------+ | #?????????????????????????????????????????????? | | #?????????????????????????????????????????????? | | #?????????????????????????????????????????????? | | #?????????????????????????????????????????????? | | #?????????????????????????????????????????????? | | [ #?????????????????????????????????????????????? | | #?????????????????????????????????????????????? | | #?????????????????????????????????????????????? | | ##????????????????????????????????????????????? | | ######???????????????????????????????????????????? | | ??## ##??????????????????????????????????????????? | | ???## ##?????????????????????????????????????????? | | ????## ##????????????????????????????????????????? | | ?????## ##???????????????????????????? ?????????? | | ##########???????????????????????????? #????????? | | """ #???????????????????????????? #????????? | | "T #???????????????????????????? #????????? | | " #???????????????????????????? #????????? | | #???????????????????????????# #????????? | | #????????????????????##?????# #????????? | | *! #??################## ####### #????????? | | %! [=#? g%ki #????????? | | !=[ =%#? BB gg #????????? | | ######+#"" BB kl #????????? | | ? ! #????????? | | "@ #????????? | | "% #????????? | | % #????????? | | ########## BB #????????? | | ?????????? BB % !! R" "" #????????? | | ??????????? ]!H "T"""% #????????? | | ???????????###################%####### #????????? | | ?????????????????????????????#%##????# #????????? | | ?????????????????????????????###?????# #????????? | | ?????????????????????????????????????# #????????? | | ?????????????????????????????????????# #????????? | | ??????????????????????????######?????# #????????? | | ??????????????????????????# ####### #????????? | | ??????????????????????????# #????????? | | ??????????????????????????# +????????? | | ??????????????????????????# ####### ##????????? | | ??????????????????????????## ########+#?????????? | | ???????????????????????????# # #?????????? | | ???????????????????????????# # #?????????? | | ???????????????????????????+ + #?????????? | | ???????????????????????????# # #?????????? | | ???????????????????????????# # #?????????? | | ?????????????#?????????????# #? #?????????? | | ????????# ??? ??#????????# #? " " #?????????? | | ????????# ??? # ???????# #??"T" #?????????? | +----------------------------------------------------+ Best States ------------- Heat Dissipation 135 Coolant Potential 220 Energy Generation 65 Energy Capacity 900 Matter Stores 300 Matter Capacity 300 Sight Range 16 Robot Scan Range 20 Terrain Scan Density 85 Jamming Range 16 Corruption Block 15 Armor Coverage 1650 Resistance: KI 20 Resistance: TH 30 Resistance: EM 25 Core Shielding 40 Weapon Shielding 66 Weapon Cycling 20 Phase Shifting 15 Evasion (%) 55 Targeting Accuracy 28 Melee Accuracy 8 Target Analysis 8 Core Analysis 6 Armor Integrity Analysis 50 Recoil Reduction 6 Particle Charging 25 Salvage Targeting 4 Offensive Hacking 34 Defensive Hacking 30 Authchip Count 1 Item Schematics ----------------- Exp. Sensor Array | -8/Materials | Scanalyzed Hcp. Storage Unit | -8/Materials | Hacked Plasma Rifle | -7/Factory | Scanalyzed Beamcaster | -7/Factory | Scanalyzed Imp. Weapon Shielding | -7/Factory | Extracted Imp. Utility Shielding | -7/Factory | Extracted Armor Integrity Analyzer | -7/Factory | Extracted Imp. Propulsion Shielding | -7/Factory | Extracted Gatling Laser | -7/Factory | Extracted Adv. Visual Processing Unit | -7/Factory | Extracted Combat Drone Bay | -7/Data Miner | Free Lgt. Regenerative Plating | -7/Data Miner | Free Cld. Cesium-ion Thruster | -7/Data Miner | Free Gravity Neutralizer | -7/Data Miner | Free Com. Ion Cannon | -7/Data Miner | Free Field Propulsion Drive | -7/Data Miner | Free Adv. Hacking Suite | -7/Data Miner | Free Imp. Remote Datajack | -7/Data Miner | Free Imp. Cryofiber Web | -7/Data Miner | Free Adv. System Shield | -7/Data Miner | Free Dispersion Rifle | -7/Data Miner | Free Spk. Medium Treads | -6/Factory | Scanalyzed Thermic Laser | -6/Factory | Scanalyzed Centrium Heavy Treads | -5/Factory | Scanalyzed Assault Drone Bay | -4/Zhirov | Free Exp. Heat Sink | -4/Zhirov | Free Exp. Optical Array | -4/Zhirov | Free Imp. Arc Thrower | -4/Zhirov | Free Com. Linear Accelerator | -2/Testing | Archive Cld. Phase Gun | -2/Testing | Archive Centrium Medium Armor Plating | -2/Testing | Archive Exp. Field Recycling Unit | -2/Testing | Archive Robot Schematics ------------------ M-14 Sweeper | -7/Data Miner | Free E-15 Imp | -7/Data Miner | Free H-66 Slayer | -7/Data Miner | Free M-28 Smith | -7/Data Miner | Free G-50 Soldier | -7/Data Miner | Free S-27 Virus | -7/Data Miner | Free B-74 Champion | -2/Testing | Archive Fabricated ------------ Adv. Trap Scanner | x2 | -7/Factory | Preloaded Plasma Rifle | x2 | -7/Factory Spk. Medium Treads | x2 | -6/Factory | Authchip Com. HERF Cannon | x1 | -5/Factory | Preloaded Centrium Heavy Treads | x1 | -4/Factory | Authchip HERF Cannon | x1 | -4/Factory | Preloaded Centrium Heavy Treads | x1 | -4/Factory S-43 Plague | x4 | -1/Access | Preloaded Alien Tech Used ----------------- Integrated Dissipator Phase Redirector Subatomic Replicator Transdimensional Reconstructor Sigix Terminator Achievements -------------- None Challenges ------------ None Game ------ Seed MappingCoordinationTreads Manual? 0 Play Time 03:50:02 Cumulative 1164.5 hours Start 2022.08.26 @ 01:22:02 End 2022.08.26 @ 05:29:34 Sessions 3 Manual Loads 0 Difficulty Rogue Special Mode None Game No. 814 Rogue 810 Adventurer 4 Explorer 0 Win Type 0 Total 128 Types 98/9/8/5/2/0/1/3/2 Lore% 94 Gallery% 97 Achievement% 98 Wizard Run 0 Options --------- ASCII 0 Keyboard 1 Movement Vi Keybinds 0 Fullscreen 0 Font 20/X11 Map View 76x50 Tactical HUD 1 Map Filters NONE Filters NONE Steam 1 RUN: 7eaf7692-1135-416f-a08f-8f7828a88d0a